fUSD/lending_fUSD_20250602
["ID","MTS","AMOUNT","RATE_DAILY","PERIOD"]
[363702757,1748826642534,-2673.92277762,0.000199,2]
[363702760,1748826642544,-5000.0,0.000199,2]
[363702762,1748826642553,-2673.92277762,0.000199,2]
[363702764,1748826642564,-2673.92277762,0.000199,2]
[363702766,1748826642574,-454.09,0.000199,2]
[363702768,1748826642584,-454.09,0.000199,2]
[363702770,1748826642593,-454.09,0.000199,2]
[363702772,1748826642603,-806.93,0.000199,2]
[363702774,1748826642613,-453.61,0.000199,2]
[363702776,1748826642622,-485.88,0.000199,2]
[363702778,1748826642632,-300.0,0.000199,2]
[363702780,1748826642641,-5800.0,0.000199,2]
[363702782,1748826642652,-2673.92277762,0.000199,2]
[363702784,1748826642662,-485.62651566,0.000199,2]
[363702786,1748826642673,-6941.15876757,0.000199,2]
[363702788,1748826642688,-1752.12810058,0.000199,2]
[363702791,1748826642708,-210.67875062,0.000199,3]
[363702793,1748826642718,-1000.0,0.000199,2]
[363702795,1748826642728,-500.0,0.00019973,2]
[363702797,1748826642737,-529.74008064,0.00019973,2]
[363702799,1748826642746,-500.0,0.00019973,2]
[363702801,1748826642756,-500.0,0.00019973,2]
[363702803,1748826642765,-500.0,0.00019973,2]
[363702805,1748826642775,-500.0,0.00019973,2]
[363702807,1748826642784,-500.0,0.00019973,2]
[363702809,1748826642795,-501.27636925,0.00019973,2]
[363702811,1748826642806,-500.0,0.00019973,2]
[363702813,1748826642815,-500.0,0.00019973,2]
[363702815,1748826642825,-14056.4695326,0.0001999,2]
[363702817,1748826642835,-120229.7430242,0.00019996,2]
[363702819,1748826642844,-7208.1048185,0.00019996,2]
[363702821,1748826642854,-14460.0809144,0.00019996,2]
[363702823,1748826642864,-669.49247622,0.00019999,2]
[363702825,1748826642873,-1000.0,0.00019999,2]
[363702827,1748826642883,-391.05,0.00019999,2]
[363702829,1748826642893,-822.0,0.00019999,2]
[363702831,1748826642903,-1013.53002592,0.0002,2]
[363702833,1748826642913,-1171043.5494025,0.0002,2]
[363702836,1748826642933,-1105.97399614,0.0002,2]
[363702895,1748826643572,-500.0,0.00019864,2]
[363702975,1748826646490,-1847.11673521,0.00019864,2]
[363702978,1748826816218,730.84,0.00018954,2]
[363702981,1748827207807,305.57,0.00013699,2]
[363702983,1748827331669,205.0,0.00018492,2]
[363702984,1748827353300,509.57,0.00016912,2]
[363702985,1748827529812,1000.0,0.00018835,2]
[363702988,1748827562145,2895.80269346,8e-05,2]
[363702989,1748827566379,962.00679282,8e-05,2]
[363702990,1748827589023,1985.8669779,0.00015,2]
[363702993,1748827599454,830939.0,0.00024,120]
[363703003,1748827627733,207.862085,7.945e-05,2]
[363703004,1748827637301,31396.0,0.0001899,2]
[363703005,1748827639298,252.27442137,0.000101,2]
[363703006,1748827672555,3309.79117565,0.0001,2]
[363703007,1748827710241,359.29142999,0.000149,2]
[363703023,1748827830588,219.08140415,0.00023,30]
[363703027,1748827831701,-155.74329205,0.00019078,2]
[363703028,1748827831714,-250.0,0.0001909,2]
[363703029,1748827831725,-151.0,0.00019166,2]
[363703030,1748827831738,-91.1642135,0.00019166,2]
[363703031,1748827831751,-59.8357865,0.00019166,2]
[363703032,1748827831763,-200.66710301,0.00019166,2]
[363703033,1748827831774,-207.4,0.00019166,2]
[363703034,1748827831788,-509.57,0.00019176,2]
[363703035,1748827831799,-51.82409812,0.00019177,2]
[363703036,1748827831813,-1148.17590188,0.00019177,2]
[363703037,1748827831824,-521.27,0.00019178,2]
[363703038,1748827831835,-420.0,0.00019178,2]
[363703039,1748827831846,-420.0,0.00019178,2]
[363703040,1748827831857,-323.14350851,0.00019178,2]
[363703041,1748827831869,-3924.69,0.00019178,2]
[363703042,1748827831881,-420.0,0.00019178,2]
[363703043,1748827831892,-271.15463139,0.00019178,2]
[363703044,1748827831903,-420.0,0.00019178,2]
[363703045,1748827831914,-420.0,0.00019178,2]
[363703046,1748827831927,-420.0,0.00019178,2]
[363703047,1748827831938,-303.49745138,0.00019178,2]
[363703048,1748827831948,-420.0,0.00019178,2]
[363703049,1748827831959,-100.13549475,0.00019178,2]
[363703050,1748827831974,-408.78450525,0.00019178,2]
[363703051,1748827831984,-420.0,0.00019178,2]
[363703052,1748827831997,-420.0,0.00019178,2]
[363703053,1748827832008,-420.0,0.00019178,2]
[363703054,1748827832018,-14.00666072,0.00019178,2]
[363703055,1748827832033,-405.99333928,0.00019178,2]
[363703056,1748827832046,-26.33299063,0.00019178,2]
[363703057,1748827832061,-393.66700937,0.00019178,2]
[363703058,1748827832073,-420.0,0.00019178,2]
[363703059,1748827832084,-290.54455448,0.00019178,2]
[363703060,1748827832103,-145.96544552,0.00019178,2]
[363703061,1748827832115,-310.44413652,0.00019178,2]
[363703062,1748827832129,-139.91586348,0.00019178,2]
[363703063,1748827832140,-420.0,0.00019178,2]
[363703064,1748827832151,-768.51973337,0.00019178,2]
[363703099,1748827837499,-277.9804315,0.00019178,2]
[363703100,1748827837513,-332.49983513,0.00019178,2]
[363703101,1748827837523,-420.0,0.00019178,2]
[363703102,1748827837538,-1257.73,0.00019178,2]
[363703103,1748827837549,-420.0,0.00019178,2]
[363703104,1748827837559,-170.46799562,0.00019178,2]
[363703105,1748827837570,-420.0,0.00019178,2]
[363703106,1748827837581,-420.0,0.00019178,2]
[363703107,1748827837591,-258.41742719,0.00019178,2]
[363703108,1748827837606,-510.94,0.00019178,2]
[363703109,1748827837617,-151.0,0.00019178,2]
[363703110,1748827837627,-420.0,0.00019315,2]
[363703111,1748827837638,-420.0,0.00019315,2]
[363703112,1748827837649,-3924.69,0.00019315,2]
[363703113,1748827837659,-340.25449239,0.00019315,2]
[363703114,1748827837672,-79.74550761,0.00019315,2]
[363703115,1748827837682,-420.0,0.00019315,2]
[363703116,1748827837693,-174.46981214,0.00019315,2]
[363703117,1748827837706,-245.53018786,0.00019315,2]
[363703118,1748827837716,-420.0,0.00019315,2]
[363703119,1748827837727,-420.0,0.00019315,2]
[363703120,1748827837738,-508.92,0.00019315,2]
[363703121,1748827837749,-420.0,0.00019315,2]
[363703122,1748827837760,-420.0,0.00019315,2]
[363703123,1748827837770,-420.0,0.00019315,2]
[363703124,1748827837781,-63.88706289,0.00019315,2]
[363703298,1748827839723,-156.02156399,0.00019315,2]
[363703300,1748827839734,-420.0,0.00019315,2]
[363703302,1748827839745,-420.0,0.00019315,2]
[363703304,1748827839757,-436.51,0.00019315,2]
[363703306,1748827839768,-450.36,0.00019315,2]
[363703308,1748827839779,-420.0,0.00019315,2]
[363703310,1748827839790,-1379.0,0.00019315,2]
[363703312,1748827839800,-420.0,0.00019315,2]
[363703315,1748827839811,-1257.73,0.00019315,2]
[363703317,1748827839822,-420.0,0.00019315,2]
[363703319,1748827839832,-420.0,0.00019315,2]
[363703321,1748827839842,-420.0,0.00019315,2]
[363703323,1748827839852,-510.94,0.00019315,2]
[363703325,1748827839863,-500.0,0.00019425,2]
[363703327,1748827839873,-420.0,0.00019452,2]
[363703329,1748827839883,-420.0,0.00019452,2]
[363703331,1748827839894,-3924.69,0.00019452,2]
[363703333,1748827839905,-420.0,0.00019452,2]
[363703335,1748827839916,-420.0,0.00019452,2]
[363703337,1748827839927,-420.0,0.00019452,2]
[363703340,1748827839937,-420.0,0.00019452,2]
[363703342,1748827839948,-420.0,0.00019452,2]
[363703344,1748827839959,-508.92,0.00019452,2]
[363703346,1748827839970,-420.0,0.00019452,2]
[363703348,1748827839980,-420.0,0.00019452,2]
[363703350,1748827839992,-420.0,0.00019452,2]
[363703352,1748827840004,-420.0,0.00019452,2]
[363703355,1748827840015,-420.0,0.00019452,2]
[363703357,1748827840026,-436.51,0.00019452,2]
[363703359,1748827840036,-450.36,0.00019452,2]
[363703361,1748827840046,-420.0,0.00019452,2]
[363703363,1748827840056,-1379.0,0.00019452,2]
[363703365,1748827840066,-420.0,0.00019452,2]
[363703367,1748827840076,-1257.73,0.00019452,2]
[363703369,1748827840086,-420.0,0.00019452,2]
[363703371,1748827840096,-420.0,0.00019452,2]
[363703373,1748827840107,-420.0,0.00019452,2]
[363703375,1748827840117,-510.94,0.00019452,2]
[363703377,1748827840128,-172.67,0.00019523,2]
[363703379,1748827840138,-500.0,0.00019534,2]
[363703381,1748827840148,-420.0,0.00019589,2]
[363703384,1748827840158,-495.76323487,0.00019589,2]
[363703387,1748827840168,-3924.69,0.00019589,2]
[363703416,1748827840552,-420.0,0.00019589,2]
[363703417,1748827840573,-420.0,0.00019589,2]
[363703418,1748827840590,-420.0,0.00019589,2]
[363703419,1748827840601,-420.0,0.00019589,2]
[363703420,1748827840614,-420.0,0.00019589,2]
[363703421,1748827840625,-508.92,0.00019589,2]
[363703422,1748827840635,-420.0,0.00019589,2]
[363703423,1748827840645,-420.0,0.00019589,2]
[363703424,1748827840655,-420.0,0.00019589,2]
[363703426,1748827840664,-420.0,0.00019589,2]
[363703428,1748827840674,-420.0,0.00019589,2]
[363703429,1748827840684,-436.51,0.00019589,2]
[363703431,1748827840693,-450.36,0.00019589,2]
[363703433,1748827840702,-420.0,0.00019589,2]
[363703436,1748827840712,-1379.0,0.00019589,2]
[363703437,1748827840722,-420.0,0.00019589,2]
[363703440,1748827840732,-1257.73,0.00019589,2]
[363703441,1748827840741,-420.0,0.00019589,2]
[363703443,1748827840757,-420.0,0.00019589,2]
[363703445,1748827840767,-420.0,0.00019589,2]
[363703448,1748827840778,-510.94,0.00019589,2]
[363703450,1748827840788,-1195.748692,0.00019599,2]
[363703451,1748827840798,-500.0,0.00019616,2]
[363703453,1748827840808,-2320.19,0.000197,2]
[363703456,1748827840819,-170.4,0.000197,2]
[363703458,1748827840829,-1000.0,0.000197,2]
[363703459,1748827840839,-151.0,0.00019714,2]
[363703461,1748827840849,-420.0,0.00019726,2]
[363703464,1748827840859,-3924.69,0.00019726,2]
[363703466,1748827840870,-420.0,0.00019726,2]
[363703467,1748827840879,-420.0,0.00019726,2]
[363703469,1748827840889,-420.0,0.00019726,2]
[363703472,1748827840899,-420.0,0.00019726,2]
[363703473,1748827840909,-420.0,0.00019726,2]
[363703475,1748827840918,-508.92,0.00019726,2]
[363703478,1748827840928,-512.96190358,0.00019726,2]
[363703480,1748827840938,-420.0,0.00019726,2]
[363703482,1748827840948,-420.0,0.00019726,2]
[363703484,1748827840957,-420.0,0.00019726,2]
[363703485,1748827840968,-420.0,0.00019726,2]
[363703488,1748827840978,-436.51,0.00019726,2]
[363703490,1748827840988,-450.36,0.00019726,2]
[363703491,1748827840997,-420.0,0.00019726,2]
[363703494,1748827841014,-1379.0,0.00019726,2]
[363703496,1748827841026,-420.0,0.00019726,2]
[363703498,1748827841035,-1257.73,0.00019726,2]
[363703500,1748827841045,-420.0,0.00019726,2]
[363703502,1748827841054,-420.0,0.00019726,2]
[363703504,1748827841063,-420.0,0.00019726,2]
[363703506,1748827841073,-510.94,0.00019726,2]
[363703508,1748827841083,-156.587,0.00019726,2]
[363703510,1748827841092,-300.0,0.000198,2]
[363703512,1748827841103,-227.52,0.000198,2]
[363703514,1748827841112,-150.0,0.000198,2]
[363703516,1748827841122,-1613.56,0.000198,2]
[363703518,1748827841131,-1613.62,0.000198,2]
[363703520,1748827841141,-837.9127849,0.000198,2]
[363703522,1748827841151,-837.91278481,0.00019811,2]
[363703524,1748827841161,-837.91278481,0.00019822,2]
[363703525,1748827841171,-837.91278481,0.00019833,2]
[363703527,1748827841181,-837.91278481,0.00019844,2]
[363703530,1748827841191,-837.91278481,0.00019856,2]
[363703531,1748827841200,-420.0,0.00019863,2]
[363703533,1748827841210,-3924.69,0.00019863,2]
[363703536,1748827841219,-420.0,0.00019863,2]
[363703538,1748827841229,-420.0,0.00019863,2]
[363703540,1748827841238,-420.0,0.00019863,2]
[363703542,1748827841248,-420.0,0.00019863,2]
[363703543,1748827841263,-420.0,0.00019863,2]
[363703545,1748827841273,-508.92,0.00019863,2]
[363703548,1748827841282,-420.0,0.00019863,2]
[363703549,1748827841292,-420.0,0.00019863,2]
[363703551,1748827841302,-420.0,0.00019863,2]
[363703553,1748827841312,-420.0,0.00019863,2]
[363703556,1748827841322,-436.51,0.00019863,2]
[363703557,1748827841332,-450.36,0.00019863,2]
[363703559,1748827841342,-450.45594797,0.00019863,2]
[363703561,1748827841352,-1379.0,0.00019863,2]
[363703564,1748827841362,-420.0,0.00019863,2]
[363703566,1748827841372,-1257.73,0.00019863,2]
[363703567,1748827841382,-420.0,0.00019863,2]
[363703570,1748827841392,-420.0,0.00019863,2]
[363703572,1748827841402,-329.84039064,0.00019863,2]
[363703574,1748827841412,-510.94,0.00019863,2]
[363703576,1748827841422,-837.91278481,0.00019867,2]
[363703577,1748827841432,-4716.842,0.00019875,2]
[363703580,1748827841442,-196.532,0.00019875,2]
[363703582,1748827841452,-837.91278481,0.00019878,2]
[363703584,1748827841461,-837.91278481,0.00019889,2]
[363703586,1748827841471,-500.0,0.0001989,2]
[363703588,1748827841481,-2461.01654683,0.000199,2]
[363703590,1748827841490,-1568.0,0.000199,2]
[363703592,1748827841503,-50461.21271916,0.000199,7]
[363703594,1748827841512,-6716.71067456,0.000199,2]
[363703596,1748827841522,-837.91278481,0.000199,2]
[363703598,1748827841533,-11433.01541257,0.0001995,2]
[363703599,1748827841543,-353.92,0.00019959,2]
[363703602,1748827841554,-353.99,0.00019959,2]
[363703604,1748827841565,-353.99,0.00019959,2]
[363703606,1748827841575,-353.99,0.00019959,2]
[363703607,1748827841584,-353.99,0.00019959,2]
[363703609,1748827841594,-353.99,0.00019959,2]
[363703611,1748827841605,-353.99,0.00019959,2]
[363703614,1748827841615,-707.35,0.00019959,2]
[363703615,1748827841624,-353.99,0.00019959,2]
[363703617,1748827841634,-353.99,0.00019959,2]
[363703619,1748827841643,-353.99,0.00019959,2]
[363703621,1748827841652,-353.99,0.00019959,2]
[363703623,1748827841662,-353.99,0.00019959,2]
[363703625,1748827841672,-356.39,0.00019959,2]
[363703627,1748827841682,-500.0,0.00019973,2]
[363703629,1748827841692,-500.0,0.00019973,2]
[363703631,1748827841701,-500.0,0.00019973,2]
[363703633,1748827841711,-164.56024287,0.00019973,2]
[363703635,1748827841721,-500.0,0.00019973,2]
[363703637,1748827841731,-500.0,0.00019973,2]
[363703639,1748827841740,-500.0,0.00019973,2]
[363703641,1748827841754,-254.64223713,0.00019973,2]
[363703643,1748827841764,-649.29403088,0.00019985,2]
[363703645,1748827841774,-26413.10665828,0.0001999,2]
[363703647,1748827841784,-832.0555662,0.00019996,2]
[363703650,1748827841797,-14003.5598833,0.00019996,2]
[363703651,1748827841808,-7046.8693237,0.00019996,2]
[363703654,1748827841818,-148212.2078701,0.00019996,2]
[363703655,1748827841828,-3615.0202288,0.00019996,2]
[363703657,1748827841838,-1202.25,0.00019997,2]
[363703659,1748827841847,-820.0,0.00019998,2]
[363703661,1748827841857,-669.49247622,0.00019999,2]
[363703663,1748827841867,-2000.0,0.00019999,2]
[363703665,1748827841877,-391.05,0.00019999,2]
[363703667,1748827841887,-983.42358249,0.00019999,2]
[363703669,1748827841896,-236.88384675,0.00019999,2]
[363703671,1748827841906,-283.93007823,0.00019999,2]
[363703673,1748827841915,-500.0,0.00019999,2]
[363703675,1748827841925,-473.9110448,0.00019999,2]
[363703677,1748827841934,-307.36945882,0.00019999,2]
[363703679,1748827841943,-500.0,0.00019999,2]
[363703681,1748827841953,-500.0,0.00019999,2]
[363703683,1748827841962,-288.50104587,0.00019999,2]
[363703685,1748827841971,-500.0,0.00019999,2]
[363703687,1748827841981,-500.0,0.00019999,2]
[363703689,1748827841990,-500.0,0.00019999,2]
[363703691,1748827842000,-500.0,0.00019999,2]
[363703693,1748827842011,-500.0,0.00019999,2]
[363703695,1748827842020,-500.0,0.00019999,2]
[363703697,1748827842029,-500.0,0.00019999,2]
[363703699,1748827842038,-387.54819333,0.00019999,2]
[363703701,1748827842048,-500.0,0.00019999,2]
[363703703,1748827842057,-500.0,0.00019999,2]
[363703705,1748827842067,-250.0,0.00019999,2]
[363703707,1748827842076,-1861.56139125,0.0002,2]
[363703709,1748827842085,-925762.82756836,0.0002,2]
[363703711,1748827842099,-1982.88503065,0.0002,2]
[363703772,1748827842647,-374.5451034,0.0002,2]
[363703781,1748827842733,-66161.69258413,0.0002,2]
[363703791,1748827842822,-371.260055,0.0002,2]
[363703793,1748827842834,-2318.75249448,0.0002,2]
[363703795,1748827842846,-105445.72656185,0.0002,2]
[363703803,1748827842909,-2953.64489237,0.0002,2]
[363704121,1748827846130,-343.74499995,0.00019959,2]
[363704122,1748827846142,-10.24500005,0.00019959,2]
[363704123,1748827846151,-6124.45499995,0.0002,2]
[363704124,1748827846163,-323.14350851,0.0002,2]
[363704125,1748827846174,-9207.67578095,0.0002,2]
[363704126,1748827846191,-724.21600741,0.0002,2]
[363704128,1748827846203,-5248.147,0.0002,2]
[363704130,1748827846215,-38606.71833841,0.0002,2]
[363704132,1748827846226,-884.00000994,0.0002,2]
[363704134,1748827846237,-5232.30679081,0.0002,2]
[363704136,1748827846248,-927.58668124,0.0002,2]
[363704489,1748828024895,10089.35658873,0.00023,30]
[363704490,1748828134300,1614.63158967,0.00023,30]
[363704493,1748828392651,458.61,0.00017067,2]
[363704494,1748828403202,301.53,0.00013699,2]
[363704497,1748828670243,200.0,0.00018853,2]
[363704498,1748828687828,1000.0,0.00018853,2]
[363704499,1748828816650,2337.082917,0.0001895,2]
[363704500,1748828833079,2751.0,0.00018849,2]
[363704516,1748829037897,-210.92,0.00019046,2]
[363704517,1748829037908,-172.38,0.00019054,2]
[363704696,1748829039727,-227.62,0.00019054,2]
[363704700,1748829039738,-250.0,0.00019062,2]
[363704703,1748829039748,-400.0,0.00019062,2]
[363704706,1748829039755,-400.0,0.00019098,2]
[363704709,1748829039765,-1200.0,0.00019165,2]
[363704712,1748829039774,-217.15793976,0.00019166,2]
[363704752,1748829039783,-511.2721705,0.00019166,2]
[363704756,1748829040170,-151.0,0.00019166,2]
[363704759,1748829040188,-155.19140027,0.00019166,2]
[363704761,1748829040197,-207.4,0.00019166,2]
[363704763,1748829040206,-300.0,0.00019177,2]
[363704765,1748829040216,-420.0,0.00019178,2]
[363704767,1748829040225,-154.72250527,0.00019178,2]
[363704769,1748829040234,-691.17,0.00019178,2]
[363704771,1748829040243,-593.31,0.00019178,2]
[363704773,1748829040253,-420.0,0.00019178,2]
[363704775,1748829040262,-177.36567969,0.00019178,2]
[363704777,1748829040274,-201.27890214,0.00019178,2]
[363704779,1748829040284,-168.99293059,0.00019178,2]
[363704781,1748829040293,-420.0,0.00019178,2]
[363704783,1748829040302,-317.10370978,0.00019178,2]
[363704785,1748829040313,-165.06668926,0.00019178,2]
[363704787,1748829040323,-172.61732353,0.00019178,2]
[363704789,1748829040331,-163.23816889,0.00019178,2]
[363704791,1748829040341,-295.70918907,0.00019178,2]
[363704793,1748829040350,-1448.743683,0.00019178,2]
[363704806,1748829040589,-1572.356317,0.00019178,2]
[363704808,1748829040599,-183.1715036,0.00019178,2]
[363704810,1748829040609,-171.78851945,0.00019178,2]
[363704812,1748829040618,-420.0,0.00019178,2]
[363704814,1748829040627,-420.0,0.00019178,2]
[363704816,1748829040636,-420.0,0.00019178,2]
[363704818,1748829040645,-420.0,0.00019178,2]
[363704820,1748829040655,-420.0,0.00019178,2]
[363704822,1748829040663,-163.36114295,0.00019178,2]
[363704824,1748829040672,-165.75047929,0.00019178,2]
[363704826,1748829040682,-420.0,0.00019178,2]
[363704828,1748829040691,-420.0,0.00019178,2]
[363704829,1748829040700,-420.0,0.00019178,2]
[363704831,1748829040711,-401.53831308,0.00019178,2]
[363704834,1748829040721,-420.0,0.00019178,2]
[363704836,1748829040730,-420.0,0.00019178,2]
[363704838,1748829040739,-420.0,0.00019178,2]
[363704839,1748829040748,-203.83467095,0.00019178,2]
[363704841,1748829040758,-420.0,0.00019178,2]
[363704844,1748829040768,-1047.82,0.00019178,2]
[363704846,1748829040778,-994.9,0.00019178,2]
[363704848,1748829040787,-158.04781383,0.00019178,2]
[363704850,1748829040797,-420.0,0.00019178,2]
[363704852,1748829040806,-263.03572749,0.00019178,2]
[363704854,1748829040816,-420.0,0.00019178,2]
[363704856,1748829040825,-420.0,0.00019178,2]
[363704858,1748829040835,-219.31040895,0.00019178,2]
[363704860,1748829040843,-420.0,0.00019178,2]
[363704861,1748829040852,-295.24446191,0.00019178,2]
[363704863,1748829040861,-151.0,0.00019178,2]
[363704865,1748829040870,-420.0,0.00019315,2]
[363704867,1748829040879,-691.17,0.00019315,2]
[363704869,1748829040887,-593.31,0.00019315,2]
[363704871,1748829040896,-420.0,0.00019315,2]
[363704873,1748829040905,-420.0,0.00019315,2]
[363704875,1748829040914,-3021.1,0.00019315,2]
[363704877,1748829040923,-420.0,0.00019315,2]
[363704879,1748829040932,-420.0,0.00019315,2]
[363704881,1748829040942,-420.0,0.00019315,2]
[363704883,1748829040951,-420.0,0.00019315,2]
[363704885,1748829040960,-420.0,0.00019315,2]
[363704887,1748829040970,-420.0,0.00019315,2]
[363704889,1748829040979,-420.0,0.00019315,2]
[363704891,1748829040989,-420.0,0.00019315,2]
[363704893,1748829040998,-420.0,0.00019315,2]
[363704895,1748829041007,-420.0,0.00019315,2]
[363704897,1748829041016,-471.0590448,0.00019315,2]
[363704899,1748829041025,-420.0,0.00019315,2]
[363704901,1748829041035,-1047.82,0.00019315,2]
[363704903,1748829041044,-994.9,0.00019315,2]
[363704905,1748829041054,-420.0,0.00019315,2]
[363704907,1748829041063,-346.04271783,0.00019315,2]
[363704909,1748829041072,-420.0,0.00019315,2]
[363704911,1748829041080,-420.0,0.00019315,2]
[363704913,1748829041089,-458.61,0.00019331,2]
[363704915,1748829041097,-420.0,0.00019452,2]
[363704917,1748829041108,-691.17,0.00019452,2]
[363704919,1748829041117,-593.31,0.00019452,2]
[363704921,1748829041126,-420.0,0.00019452,2]
[363704923,1748829041134,-292.39116452,0.00019452,2]
[363704925,1748829041143,-3021.1,0.00019452,2]
[363704927,1748829041152,-420.0,0.00019452,2]
[363704929,1748829041164,-420.0,0.00019452,2]
[363704930,1748829041173,-420.0,0.00019452,2]
[363704932,1748829041183,-420.0,0.00019452,2]
[363704934,1748829041192,-420.0,0.00019452,2]
[363704936,1748829041202,-420.0,0.00019452,2]
[363704938,1748829041211,-420.0,0.00019452,2]
[363704940,1748829041220,-420.0,0.00019452,2]
[363704942,1748829041231,-420.0,0.00019452,2]
[363704944,1748829041240,-420.0,0.00019452,2]
[363704946,1748829041249,-420.0,0.00019452,2]
[363704948,1748829041259,-1047.82,0.00019452,2]
[363704950,1748829041268,-994.9,0.00019452,2]
[363704952,1748829041277,-420.0,0.00019452,2]
[363704954,1748829041286,-420.0,0.00019452,2]
[363704956,1748829041295,-420.0,0.00019452,2]
[363704958,1748829041304,-8933.39536149,0.00019564,2]
[363704960,1748829041316,-281.38184125,0.00019564,2]
[363704962,1748829041327,-685.43975044,0.00019564,2]
[363704964,1748829041336,-420.0,0.00019589,2]
[363704966,1748829041346,-691.17,0.00019589,2]
[363704968,1748829041355,-593.31,0.00019589,2]
[363704970,1748829041365,-420.0,0.00019589,2]
[363704972,1748829041374,-3021.1,0.00019589,2]
[363704974,1748829041383,-420.0,0.00019589,2]
[363704976,1748829041392,-420.0,0.00019589,2]
[363704978,1748829041402,-420.0,0.00019589,2]
[363704980,1748829041411,-420.0,0.00019589,2]
[363704983,1748829041421,-420.0,0.00019589,2]
[363704985,1748829041430,-420.0,0.00019589,2]
[363704987,1748829041439,-139.96304853,0.00019589,2]
[363704989,1748829041451,-280.03695147,0.00019589,2]
[363704991,1748829041459,-420.0,0.00019589,2]
[363704993,1748829041468,-420.0,0.00019589,2]
[363704995,1748829041477,-420.0,0.00019589,2]
[363704997,1748829041485,-420.0,0.00019589,2]
[363704999,1748829041494,-571.50804853,0.00019589,2]
[363705001,1748829041509,-476.31195147,0.00019589,2]
[363705003,1748829041520,-994.9,0.00019589,2]
[363705005,1748829041530,-338.56709364,0.00019589,2]
[363705007,1748829041539,-420.0,0.00019589,2]
[363705010,1748829041550,-420.0,0.00019589,2]
[363705012,1748829041559,-569.0,0.00019671,2]
[363705014,1748829041568,-624.0,0.00019699,2]
[363705016,1748829041578,-500.0,0.00019699,2]
[363705018,1748829041587,-1161.54,0.000197,2]
[363705020,1748829041596,-326.02,0.000197,2]
[363705022,1748829041605,-326.14,0.000197,2]
[363705023,1748829041614,-420.0,0.00019726,2]
[363705025,1748829041624,-691.17,0.00019726,2]
[363705027,1748829041634,-593.31,0.00019726,2]
[363705029,1748829041643,-420.0,0.00019726,2]
[363705031,1748829041652,-3021.1,0.00019726,2]
[363705033,1748829041661,-420.0,0.00019726,2]
[363705035,1748829041671,-420.0,0.00019726,2]
[363705037,1748829041680,-420.0,0.00019726,2]
[363705039,1748829041689,-420.0,0.00019726,2]
[363705041,1748829041699,-420.0,0.00019726,2]
[363705043,1748829041708,-420.0,0.00019726,2]
[363705045,1748829041717,-420.0,0.00019726,2]
[363705047,1748829041727,-420.63083261,0.00019726,2]
[363705049,1748829041735,-420.0,0.00019726,2]
[363705051,1748829041744,-420.0,0.00019726,2]
[363705053,1748829041753,-420.0,0.00019726,2]
[363705055,1748829041762,-1047.82,0.00019726,2]
[363705057,1748829041773,-994.9,0.00019726,2]
[363705059,1748829041782,-420.0,0.00019726,2]
[363705061,1748829041792,-420.0,0.00019726,2]
[363705063,1748829041801,-156.587,0.00019726,2]
[363705065,1748829041810,-420.0,0.00019863,2]